{"text_format":"1","workbook":"xlsx","n_sheets":8,"sheets":["Home","Stap 1","Stap 2","Stap 3","Stap 4","Stap 5","Instellingen","Werkdagen"],"not_rendered":{"charts":0,"images":8,"macros":1,"external_links":0,"defined_names":6,"comments":0,"pivot_tables":0},"unopened":[],"bounds":{"document_bytes":16777216,"sheet_cells":100000,"rows_first":2000,"rows_last":500,"rows_between":2000,"halvings":0,"cell_chars":16384,"cell_head_chars":4096},"cells_cut":0,"cells_raw":0,"read":"whole","date_system":"1900"}

{"sheet":"Home","index":0,"n_rows":18,"n_cols":11,"rows_kept":18,"cut":false,"hidden":false,"merged":[]}
[]
[]
[]
[]
[]
[]
[]
[null,null,null,null,null,null,null,null,null,null,"Bestand aanpassen,"]
[null,null,null,null,null,null,null,null,null,null,"een bestand op maat of"]
[null,null,null,null,null,null,null,null,null,null,"een cursus op locatie?"]
[null,null,null,null,null,null,null,null,null,null,"Neem contact op via:"]
[]
[null,null,null,null,null,null,null,null,null,"*","info@terzake-excel.nl"]
[null,null,null,null,null,null,null,null,null,"(","0317 200 009"]
[]
[null,null,null,null,null,null,null,null,null,null,"Let op! Bij gebruik van macro's en VBA zal je een eventuele blokkade van"]
[null,null,null,null,null,null,null,null,null,null,"je bestand moeten halen. Hoe je dit doet kun je hier lezen:"]
[null,null,null,null,null,null,null,null,null,null,"Blokkering opheffen"]

{"sheet":"Stap 1","index":1,"n_rows":26,"n_cols":7,"rows_kept":26,"cut":false,"hidden":false,"merged":[]}
[]
[null,null,"Werkdagen"]
[null,"Foto","Ma","Di","Wo","Do","Vr"]
["Kim",{"$error":"#VALUE!"},false,false,false,false,false]
["Stefan",{"$error":"#VALUE!"},false,false,false,false,false]
["Dineke",{"$error":"#VALUE!"},false,false,false,false,false]
["Wim",{"$error":"#VALUE!"},false,false,false,false,false]
["Jort",{"$error":"#VALUE!"},false,false,false,false,false]
[null,null,false,false,false,false,false]
[null,null,false,false,false,false,false]
[null,null,false,false,false,false,false]
[null,null,false,false,false,false,false]
[null,null,false,false,false,false,false]
[null,null,false,false,false,false,false]
[null,null,false,false,false,false,false]
[null,null,false,false,false,false,false]
[null,null,false,false,false,false,false]
[null,null,false,false,false,false,false]
[null,null,false,false,false,false,false]
[null,null,false,false,false,false,false]
[null,null,false,false,false,false,false]
[null,null,false,false,false,false,false]
[null,null,false,false,false,false,false]
[null,null,false,false,false,false,false]
[null,null,false,false,false,false,false]
[null,null,false,false,false,false,false]

{"sheet":"Stap 2","index":2,"n_rows":262,"n_cols":25,"rows_kept":262,"cut":false,"hidden":false,"merged":[]}
[null,null,"Medewerker"]
["Datum",null,{"$f":"TRANSPOSE(Instellingen!B4:B26)","v":{"$error":"#VALUE!"}},{"$error":"#VALUE!"},{"$error":"#VALUE!"},{"$error":"#VALUE!"},{"$error":"#VALUE!"},0,0,0,0,0,0,0,0,0,0,0,0,0,0,0,0,0,0]
["2026-01-05",{"$f":"A3","v":"2026-01-05"},false,false,false,false,false,false,false,false,false,false,false,false,false,false,false,false,false,false,false,false,false,false,false]
[{"$f":"A3+1","v":"2026-01-06"},{"$f":"A4","v":"2026-01-06"},false,false,false,false,false,false,false,false,false,false,false,false,false,false,false,false,false,false,false,false,false,false,false]
[{"$f":"A4+1","v":"2026-01-07"},"2026-01-07",false,false,false,false,false,false,false,false,false,false,false,false,false,false,false,false,false,false,false,false,false,false,false]
["2026-01-08","2026-01-08",false,false,false,false,false,false,false,false,false,false,false,false,false,false,false,false,false,false,false,false,false,false,false]
["2026-01-09","2026-01-09",false,false,false,false,false,false,false,false,false,false,false,false,false,false,false,false,false,false,false,false,false,false,false]
[{"$f":"A3+7","v":"2026-01-12"},"2026-01-12",false,false,false,false,false,false,false,false,false,false,false,false,false,false,false,false,false,false,false,false,false,false,false]
["2026-01-13","2026-01-13",false,false,false,false,false,false,false,false,false,false,false,false,false,false,false,false,false,false,false,false,false,false,false]
["2026-01-14","2026-01-14",false,false,false,false,false,false,false,false,false,false,false,false,false,false,false,false,false,false,false,false,false,false,false]
["2026-01-15","2026-01-15",false,false,false,false,false,false,false,false,false,false,false,false,false,false,false,false,false,false,false,false,false,false,false]
["2026-01-16","2026-01-16",false,false,false,false,false,false,false,false,false,false,false,false,false,false,false,false,false,false,false,false,false,false,false]
["2026-01-19","2026-01-19",false,false,false,false,false,false,false,false,false,false,false,false,false,false,false,false,false,false,false,false,false,false,false]
["2026-01-20","2026-01-20",false,false,false,false,false,false,false,false,false,false,false,false,false,false,false,false,false,false,false,false,false,false,false]
["2026-01-21","2026-01-21",false,false,false,false,false,false,false,false,false,false,false,false,false,false,false,false,false,false,false,false,false,false,false]
["2026-01-22","2026-01-22",false,false,false,false,false,false,false,false,false,false,false,false,false,false,false,false,false,false,false,false,false,false,false]
["2026-01-23","2026-01-23",false,false,false,false,false,false,false,false,false,false,false,false,false,false,false,false,false,false,false,false,false,false,false]
["2026-01-26","2026-01-26",false,false,false,false,false,false,false,false,false,false,false,false,false,false,false,false,false,false,false,false,false,false,false]
["2026-01-27","2026-01-27",false,false,false,false,false,false,false,false,false,false,false,false,false,false,false,false,false,false,false,false,false,false,false]
["2026-01-28","2026-01-28",false,false,false,false,false,false,false,false,false,false,false,false,false,false,false,false,false,false,false,false,false,false,false]
["2026-01-29","2026-01-29",false,false,false,false,false,false,false,false,false,false,false,false,false,false,false,false,false,false,false,false,false,false,false]
["2026-01-30","2026-01-30",false,false,false,false,false,false,false,false,false,false,false,false,false,false,false,false,false,false,false,false,false,false,false]
["2026-02-02","2026-02-02",false,false,false,false,false,false,false,false,false,false,false,false,false,false,false,false,false,false,false,false,false,false,false]
["2026-02-03","2026-02-03",false,false,false,false,false,false,false,false,false,false,false,false,false,false,false,false,false,false,false,false,false,false,false]
["2026-02-04","2026-02-04",false,false,false,false,false,false,false,false,false,false,false,false,false,false,false,false,false,false,false,false,false,false,false]
["2026-02-05","2026-02-05",false,false,false,false,false,false,false,false,false,false,false,false,false,false,false,false,false,false,false,false,false,false,false]
["2026-02-06","2026-02-06",false,false,false,false,false,false,false,false,false,false,false,false,false,false,false,false,false,false,false,false,false,false,false]
["2026-02-09","2026-02-09",false,false,false,false,false,false,false,false,false,false,false,false,false,false,false,false,false,false,false,false,false,false,false]
["2026-02-10","2026-02-10",false,false,false,false,false,false,false,false,false,false,false,false,false,false,false,false,false,false,false,false,false,false,false]
["2026-02-11","2026-02-11",false,false,false,false,false,false,false,false,false,false,false,false,false,false,false,false,false,false,false,false,false,false,false]
["2026-02-12","2026-02-12",false,false,false,false,false,false,false,false,false,false,false,false,false,false,false,false,false,false,false,false,false,false,false]
["2026-02-13","2026-02-13",false,false,false,false,false,false,false,false,false,false,false,false,false,false,false,false,false,false,false,false,false,false,false]
["2026-02-16","2026-02-16",false,false,false,false,false,false,false,false,false,false,false,false,false,false,false,false,false,false,false,false,false,false,false]
["2026-02-17","2026-02-17",false,false,false,false,false,false,false,false,false,false,false,false,false,false,false,false,false,false,false,false,false,false,false]
["2026-02-18","2026-02-18",false,false,false,false,false,false,false,false,false,false,false,false,false,false,false,false,false,false,false,false,false,false,false]
["2026-02-19","2026-02-19",false,false,false,false,false,false,false,false,false,false,false,false,false,false,false,false,false,false,false,false,false,false,false]
["2026-02-20","2026-02-20",false,false,false,false,false,false,false,false,false,false,false,false,false,false,false,false,false,false,false,false,false,false,false]
["2026-02-23","2026-02-23",false,false,false,false,false,false,false,false,false,false,false,false,false,false,false,false,false,false,false,false,false,false,false]
["2026-02-24","2026-02-24",false,false,false,false,false,false,false,false,false,false,false,false,false,false,false,false,false,false,false,false,false,false,false]
["2026-02-25","2026-02-25",false,false,false,false,false,false,false,false,false,false,false,false,false,false,false,false,false,false,false,false,false,false,false]
["2026-02-26","2026-02-26",false,false,false,false,false,false,false,false,false,false,false,false,false,false,false,false,false,false,false,false,false,false,false]
["2026-02-27","2026-02-27",false,false,false,false,false,false,false,false,false,false,false,false,false,false,false,false,false,false,false,false,false,false,false]
["2026-03-02","2026-03-02",false,false,false,false,false,false,false,false,false,false,false,false,false,false,false,false,false,false,false,false,false,false,false]
["2026-03-03","2026-03-03",false,false,false,false,false,false,false,false,false,false,false,false,false,false,false,false,false,false,false,false,false,false,false]
["2026-03-04","2026-03-04",false,false,false,false,false,false,false,false,false,false,false,false,false,false,false,false,false,false,false,false,false,false,false]
["2026-03-05","2026-03-05",false,false,false,false,false,false,false,false,false,false,false,false,false,false,false,false,false,false,false,false,false,false,false]
["2026-03-06","2026-03-06",false,false,false,false,false,false,false,false,false,false,false,false,false,false,false,false,false,false,false,false,false,false,false]
["2026-03-09","2026-03-09",false,false,false,false,false,false,false,false,false,false,false,false,false,false,false,false,false,false,false,false,false,false,false]
["2026-03-10","2026-03-10",false,false,false,false,false,false,false,false,false,false,false,false,false,false,false,false,false,false,false,false,false,false,false]
["2026-03-11","2026-03-11",false,false,false,false,false,false,false,false,false,false,false,false,false,false,false,false,false,false,false,false,false,false,false]
["2026-03-12","2026-03-12",false,false,false,false,false,false,false,false,false,false,false,false,false,false,false,false,false,false,false,false,false,false,false]
["2026-03-13","2026-03-13",false,false,false,false,false,false,false,false,false,false,false,false,false,false,false,false,false,false,false,false,false,false,false]
["2026-03-16","2026-03-16",false,false,false,false,false,false,false,false,false,false,false,false,false,false,false,false,false,false,false,false,false,false,false]
["2026-03-17","2026-03-17",false,false,false,false,false,false,false,false,false,false,false,false,false,false,false,false,false,false,false,false,false,false,false]
["2026-03-18","2026-03-18",false,false,false,false,false,false,false,false,false,false,false,false,false,false,false,false,false,false,false,false,false,false,false]
["2026-03-19","2026-03-19",false,false,false,false,false,false,false,false,false,false,false,false,false,false,false,false,false,false,false,false,false,false,false]
["2026-03-20","2026-03-20",false,false,false,false,false,false,false,false,false,false,false,false,false,false,false,false,false,false,false,false,false,false,false]
["2026-03-23","2026-03-23",false,false,false,false,false,false,false,false,false,false,false,false,false,false,false,false,false,false,false,false,false,false,false]
["2026-03-24","2026-03-24",false,false,false,false,false,false,false,false,false,false,false,false,false,false,false,false,false,false,false,false,false,false,false]
["2026-03-25","2026-03-25",false,false,false,false,false,false,false,false,false,false,false,false,false,false,false,false,false,false,false,false,false,false,false]
["2026-03-26","2026-03-26",false,false,false,false,false,false,false,false,false,false,false,false,false,false,false,false,false,false,false,false,false,false,false]
["2026-03-27","2026-03-27",false,false,false,false,false,false,false,false,false,false,false,false,false,false,false,false,false,false,false,false,false,false,false]
["2026-03-30","2026-03-30",false,false,false,false,false,false,false,false,false,false,false,false,false,false,false,false,false,false,false,false,false,false,false]
["2026-03-31","2026-03-31",false,false,false,false,false,false,false,false,false,false,false,false,false,false,false,false,false,false,false,false,false,false,false]
["2026-04-01","2026-04-01",false,false,false,false,false,false,false,false,false,false,false,false,false,false,false,false,false,false,false,false,false,false,false]
["2026-04-02","2026-04-02",false,false,false,false,false,false,false,false,false,false,false,false,false,false,false,false,false,false,false,false,false,false,false]
["2026-04-03","2026-04-03",false,false,false,false,false,false,false,false,false,false,false,false,false,false,false,false,false,false,false,false,false,false,false]
["2026-04-06",{"$f":"A68","v":"2026-04-06"},false,false,false,false,false,false,false,false,false,false,false,false,false,false,false,false,false,false,false,false,false,false,false]
["2026-04-07","2026-04-07",false,false,false,false,false,false,false,false,false,false,false,false,false,false,false,false,false,false,false,false,false,false,false]
["2026-04-08","2026-04-08",false,false,false,false,false,false,false,false,false,false,false,false,false,false,false,false,false,false,false,false,false,false,false]
["2026-04-09","2026-04-09",false,false,false,false,false,false,false,false,false,false,false,false,false,false,false,false,false,false,false,false,false,false,false]
[{"$f":"A67+7","v":"2026-04-10"},"2026-04-10",false,false,false,false,false,false,false,false,false,false,false,false,false,false,false,false,false,false,false,false,false,false,false]
["2026-04-13","2026-04-13",false,false,false,false,false,false,false,false,false,false,false,false,false,false,false,false,false,false,false,false,false,false,false]
["2026-04-14","2026-04-14",false,false,false,false,false,false,false,false,false,false,false,false,false,false,false,false,false,false,false,false,false,false,false]
["2026-04-15","2026-04-15",false,false,false,false,false,false,false,false,false,false,false,false,false,false,false,false,false,false,false,false,false,false,false]
["2026-04-16","2026-04-16",false,false,false,false,false,false,false,false,false,false,false,false,false,false,false,false,false,false,false,false,false,false,false]
["2026-04-17","2026-04-17",false,false,false,false,false,false,false,false,false,false,false,false,false,false,false,false,false,false,false,false,false,false,false]
["2026-04-20","2026-04-20",false,false,false,false,false,false,false,false,false,false,false,false,false,false,false,false,false,false,false,false,false,false,false]
["2026-04-21","2026-04-21",false,false,false,false,false,false,false,false,false,false,false,false,false,false,false,false,false,false,false,false,false,false,false]
["2026-04-22","2026-04-22",false,false,false,false,false,false,false,false,false,false,false,false,false,false,false,false,false,false,false,false,false,false,false]
["2026-04-23","2026-04-23",false,false,false,false,false,false,false,false,false,false,false,false,false,false,false,false,false,false,false,false,false,false,false]
["2026-04-24","2026-04-24",false,false,false,false,false,false,false,false,false,false,false,false,false,false,false,false,false,false,false,false,false,false,false]
["2026-04-27","2026-04-27",false,false,false,false,false,false,false,false,false,false,false,false,false,false,false,false,false,false,false,false,false,false,false]
["2026-04-28","2026-04-28",false,false,false,false,false,false,false,false,false,false,false,false,false,false,false,false,false,false,false,false,false,false,false]
["2026-04-29","2026-04-29",false,false,false,false,false,false,false,false,false,false,false,false,false,false,false,false,false,false,false,false,false,false,false]
["2026-04-30","2026-04-30",false,false,false,false,false,false,false,false,false,false,false,false,false,false,false,false,false,false,false,false,false,false,false]
["2026-05-01","2026-05-01",false,false,false,false,false,false,false,false,false,false,false,false,false,false,false,false,false,false,false,false,false,false,false]
["2026-05-04","2026-05-04",false,false,false,false,false,false,false,false,false,false,false,false,false,false,false,false,false,false,false,false,false,false,false]
["2026-05-05","2026-05-05",false,false,false,false,false,false,false,false,false,false,false,false,false,false,false,false,false,false,false,false,false,false,false]
["2026-05-06","2026-05-06",false,false,false,false,false,false,false,false,false,false,false,false,false,false,false,false,false,false,false,false,false,false,false]
["2026-05-07","2026-05-07",false,false,false,false,false,false,false,false,false,false,false,false,false,false,false,false,false,false,false,false,false,false,false]
["2026-05-08","2026-05-08",false,false,false,false,false,false,false,false,false,false,false,false,false,false,false,false,false,false,false,false,false,false,false]
["2026-05-11","2026-05-11",false,false,false,false,false,false,false,false,false,false,false,false,false,false,false,false,false,false,false,false,false,false,false]
["2026-05-12","2026-05-12",false,false,false,false,false,false,false,false,false,false,false,false,false,false,false,false,false,false,false,false,false,false,false]
["2026-05-13","2026-05-13",false,false,false,false,false,false,false,false,false,false,false,false,false,false,false,false,false,false,false,false,false,false,false]
["2026-05-14","2026-05-14",false,false,false,false,false,false,false,false,false,false,false,false,false,false,false,false,false,false,false,false,false,false,false]
["2026-05-15","2026-05-15",false,false,false,false,false,false,false,false,false,false,false,false,false,false,false,false,false,false,false,false,false,false,false]
["2026-05-18","2026-05-18",false,false,false,false,false,false,false,false,false,false,false,false,false,false,false,false,false,false,false,false,false,false,false]
["2026-05-19","2026-05-19",false,false,false,false,false,false,false,false,false,false,false,false,false,false,false,false,false,false,false,false,false,false,false]
["2026-05-20","2026-05-20",false,false,false,false,false,false,false,false,false,false,false,false,false,false,false,false,false,false,false,false,false,false,false]
["2026-05-21","2026-05-21",false,false,false,false,false,false,false,false,false,false,false,false,false,false,false,false,false,false,false,false,false,false,false]
["2026-05-22","2026-05-22",false,false,false,false,false,false,false,false,false,false,false,false,false,false,false,false,false,false,false,false,false,false,false]
["2026-05-25","2026-05-25",false,false,false,false,false,false,false,false,false,false,false,false,false,false,false,false,false,false,false,false,false,false,false]
["2026-05-26","2026-05-26",false,false,false,false,false,false,false,false,false,false,false,false,false,false,false,false,false,false,false,false,false,false,false]
["2026-05-27","2026-05-27",false,false,false,false,false,false,false,false,false,false,false,false,false,false,false,false,false,false,false,false,false,false,false]
["2026-05-28","2026-05-28",false,false,false,false,false,false,false,false,false,false,false,false,false,false,false,false,false,false,false,false,false,false,false]
["2026-05-29","2026-05-29",false,false,false,false,false,false,false,false,false,false,false,false,false,false,false,false,false,false,false,false,false,false,false]
["2026-06-01","2026-06-01",false,false,false,false,false,false,false,false,false,false,false,false,false,false,false,false,false,false,false,false,false,false,false]
["2026-06-02","2026-06-02",false,false,false,false,false,false,false,false,false,false,false,false,false,false,false,false,false,false,false,false,false,false,false]
["2026-06-03","2026-06-03",false,false,false,false,false,false,false,false,false,false,false,false,false,false,false,false,false,false,false,false,false,false,false]
["2026-06-04","2026-06-04",false,false,false,false,false,false,false,false,false,false,false,false,false,false,false,false,false,false,false,false,false,false,false]
["2026-06-05","2026-06-05",false,false,false,false,false,false,false,false,false,false,false,false,false,false,false,false,false,false,false,false,false,false,false]
["2026-06-08","2026-06-08",false,false,false,false,false,false,false,false,false,false,false,false,false,false,false,false,false,false,false,false,false,false,false]
["2026-06-09","2026-06-09",false,false,false,false,false,false,false,false,false,false,false,false,false,false,false,false,false,false,false,false,false,false,false]
["2026-06-10","2026-06-10",false,false,false,false,false,false,false,false,false,false,false,false,false,false,false,false,false,false,false,false,false,false,false]
["2026-06-11","2026-06-11",false,false,false,false,false,false,false,false,false,false,false,false,false,false,false,false,false,false,false,false,false,false,false]
["2026-06-12","2026-06-12",false,false,false,false,false,false,false,false,false,false,false,false,false,false,false,false,false,false,false,false,false,false,false]
["2026-06-15","2026-06-15",false,false,false,false,false,false,false,false,false,false,false,false,false,false,false,false,false,false,false,false,false,false,false]
["2026-06-16","2026-06-16",false,false,false,false,false,false,false,false,false,false,false,false,false,false,false,false,false,false,false,false,false,false,false]
["2026-06-17","2026-06-17",false,false,false,false,false,false,false,false,false,false,false,false,false,false,false,false,false,false,false,false,false,false,false]
["2026-06-18","2026-06-18",false,false,false,false,false,false,false,false,false,false,false,false,false,false,false,false,false,false,false,false,false,false,false]
["2026-06-19","2026-06-19",false,false,false,false,false,false,false,false,false,false,false,false,false,false,false,false,false,false,false,false,false,false,false]
["2026-06-22","2026-06-22",false,false,false,false,false,false,false,false,false,false,false,false,false,false,false,false,false,false,false,false,false,false,false]
["2026-06-23","2026-06-23",false,false,false,false,false,false,false,false,false,false,false,false,false,false,false,false,false,false,false,false,false,false,false]
["2026-06-24","2026-06-24",false,false,false,false,false,false,false,false,false,false,false,false,false,false,false,false,false,false,false,false,false,false,false]
["2026-06-25","2026-06-25",false,false,false,false,false,false,false,false,false,false,false,false,false,false,false,false,false,false,false,false,false,false,false]
["2026-06-26","2026-06-26",false,false,false,false,false,false,false,false,false,false,false,false,false,false,false,false,false,false,false,false,false,false,false]
["2026-06-29","2026-06-29",false,false,false,false,false,false,false,false,false,false,false,false,false,false,false,false,false,false,false,false,false,false,false]
["2026-06-30","2026-06-30",false,false,false,false,false,false,false,false,false,false,false,false,false,false,false,false,false,false,false,false,false,false,false]
["2026-07-01","2026-07-01",false,false,false,false,false,false,false,false,false,false,false,false,false,false,false,false,false,false,false,false,false,false,false]
["2026-07-02","2026-07-02",false,false,false,false,false,false,false,false,false,false,false,false,false,false,false,false,false,false,false,false,false,false,false]
["2026-07-03",{"$f":"A132","v":"2026-07-03"},false,false,false,false,false,false,false,false,false,false,false,false,false,false,false,false,false,false,false,false,false,false,false]
["2026-07-06","2026-07-06",false,false,false,false,false,false,false,false,false,false,false,false,false,false,false,false,false,false,false,false,false,false,false]
["2026-07-07","2026-07-07",false,false,false,false,false,false,false,false,false,false,false,false,false,false,false,false,false,false,false,false,false,false,false]
["2026-07-08","2026-07-08",false,false,false,false,false,false,false,false,false,false,false,false,false,false,false,false,false,false,false,false,false,false,false]
[{"$f":"A131+7","v":"2026-07-09"},"2026-07-09",false,false,false,false,false,false,false,false,false,false,false,false,false,false,false,false,false,false,false,false,false,false,false]
["2026-07-10","2026-07-10",false,false,false,false,false,false,false,false,false,false,false,false,false,false,false,false,false,false,false,false,false,false,false]
["2026-07-13","2026-07-13",false,false,false,false,false,false,false,false,false,false,false,false,false,false,false,false,false,false,false,false,false,false,false]
["2026-07-14","2026-07-14",false,false,false,false,false,false,false,false,false,false,false,false,false,false,false,false,false,false,false,false,false,false,false]
["2026-07-15","2026-07-15",false,false,false,false,false,false,false,false,false,false,false,false,false,false,false,false,false,false,false,false,false,false,false]
["2026-07-16","2026-07-16",false,false,false,false,false,false,false,false,false,false,false,false,false,false,false,false,false,false,false,false,false,false,false]
["2026-07-17","2026-07-17",false,false,false,false,false,false,false,false,false,false,false,false,false,false,false,false,false,false,false,false,false,false,false]
["2026-07-20","2026-07-20",false,false,false,false,false,false,false,false,false,false,false,false,false,false,false,false,false,false,false,false,false,false,false]
["2026-07-21","2026-07-21",false,false,false,false,false,false,false,false,false,false,false,false,false,false,false,false,false,false,false,false,false,false,false]
["2026-07-22","2026-07-22",false,false,false,false,false,false,false,false,false,false,false,false,false,false,false,false,false,false,false,false,false,false,false]
["2026-07-23","2026-07-23",false,false,false,false,false,false,false,false,false,false,false,false,false,false,false,false,false,false,false,false,false,false,false]
["2026-07-24","2026-07-24",false,false,false,false,false,false,false,false,false,false,false,false,false,false,false,false,false,false,false,false,false,false,false]
["2026-07-27","2026-07-27",false,false,false,false,false,false,false,false,false,false,false,false,false,false,false,false,false,false,false,false,false,false,false]
["2026-07-28","2026-07-28",false,false,false,false,false,false,false,false,false,false,false,false,false,false,false,false,false,false,false,false,false,false,false]
["2026-07-29","2026-07-29",false,false,false,false,false,false,false,false,false,false,false,false,false,false,false,false,false,false,false,false,false,false,false]
["2026-07-30","2026-07-30",false,false,false,false,false,false,false,false,false,false,false,false,false,false,false,false,false,false,false,false,false,false,false]
["2026-07-31","2026-07-31",false,false,false,false,false,false,false,false,false,false,false,false,false,false,false,false,false,false,false,false,false,false,false]
["2026-08-03","2026-08-03",false,false,false,false,false,false,false,false,false,false,false,false,false,false,false,false,false,false,false,false,false,false,false]
["2026-08-04","2026-08-04",false,false,false,false,false,false,false,false,false,false,false,false,false,false,false,false,false,false,false,false,false,false,false]
["2026-08-05","2026-08-05",false,false,false,false,false,false,false,false,false,false,false,false,false,false,false,false,false,false,false,false,false,false,false]
["2026-08-06","2026-08-06",false,false,false,false,false,false,false,false,false,false,false,false,false,false,false,false,false,false,false,false,false,false,false]
["2026-08-07","2026-08-07",false,false,false,false,false,false,false,false,false,false,false,false,false,false,false,false,false,false,false,false,false,false,false]
["2026-08-10","2026-08-10",false,false,false,false,false,false,false,false,false,false,false,false,false,false,false,false,false,false,false,false,false,false,false]
["2026-08-11","2026-08-11",false,false,false,false,false,false,false,false,false,false,false,false,false,false,false,false,false,false,false,false,false,false,false]
["2026-08-12","2026-08-12",false,false,false,false,false,false,false,false,false,false,false,false,false,false,false,false,false,false,false,false,false,false,false]
["2026-08-13","2026-08-13",false,false,false,false,false,false,false,false,false,false,false,false,false,false,false,false,false,false,false,false,false,false,false]
["2026-08-14","2026-08-14",false,false,false,false,false,false,false,false,false,false,false,false,false,false,false,false,false,false,false,false,false,false,false]
["2026-08-17","2026-08-17",false,false,false,false,false,false,false,false,false,false,false,false,false,false,false,false,false,false,false,false,false,false,false]
["2026-08-18","2026-08-18",false,false,false,false,false,false,false,false,false,false,false,false,false,false,false,false,false,false,false,false,false,false,false]
["2026-08-19","2026-08-19",false,false,false,false,false,false,false,false,false,false,false,false,false,false,false,false,false,false,false,false,false,false,false]
["2026-08-20","2026-08-20",false,false,false,false,false,false,false,false,false,false,false,false,false,false,false,false,false,false,false,false,false,false,false]
["2026-08-21","2026-08-21",false,false,false,false,false,false,false,false,false,false,false,false,false,false,false,false,false,false,false,false,false,false,false]
["2026-08-24","2026-08-24",false,false,false,false,false,false,false,false,false,false,false,false,false,false,false,false,false,false,false,false,false,false,false]
["2026-08-25","2026-08-25",false,false,false,false,false,false,false,false,false,false,false,false,false,false,false,false,false,false,false,false,false,false,false]
["2026-08-26","2026-08-26",false,false,false,false,false,false,false,false,false,false,false,false,false,false,false,false,false,false,false,false,false,false,false]
["2026-08-27","2026-08-27",false,false,false,false,false,false,false,false,false,false,false,false,false,false,false,false,false,false,false,false,false,false,false]
["2026-08-28","2026-08-28",false,false,false,false,false,false,false,false,false,false,false,false,false,false,false,false,false,false,false,false,false,false,false]
["2026-08-31","2026-08-31",false,false,false,false,false,false,false,false,false,false,false,false,false,false,false,false,false,false,false,false,false,false,false]
["2026-09-01","2026-09-01",false,false,false,false,false,false,false,false,false,false,false,false,false,false,false,false,false,false,false,false,false,false,false]
["2026-09-02","2026-09-02",false,false,false,false,false,false,false,false,false,false,false,false,false,false,false,false,false,false,false,false,false,false,false]
["2026-09-03","2026-09-03",false,false,false,false,false,false,false,false,false,false,false,false,false,false,false,false,false,false,false,false,false,false,false]
["2026-09-04","2026-09-04",false,false,false,false,false,false,false,false,false,false,false,false,false,false,false,false,false,false,false,false,false,false,false]
["2026-09-07","2026-09-07",false,false,false,false,false,false,false,false,false,false,false,false,false,false,false,false,false,false,false,false,false,false,false]
["2026-09-08","2026-09-08",false,false,false,false,false,false,false,false,false,false,false,false,false,false,false,false,false,false,false,false,false,false,false]
["2026-09-09","2026-09-09",false,false,false,false,false,false,false,false,false,false,false,false,false,false,false,false,false,false,false,false,false,false,false]
["2026-09-10","2026-09-10",false,false,false,false,false,false,false,false,false,false,false,false,false,false,false,false,false,false,false,false,false,false,false]
["2026-09-11","2026-09-11",false,false,false,false,false,false,false,false,false,false,false,false,false,false,false,false,false,false,false,false,false,false,false]
["2026-09-14","2026-09-14",false,false,false,false,false,false,false,false,false,false,false,false,false,false,false,false,false,false,false,false,false,false,false]
["2026-09-15","2026-09-15",false,false,false,false,false,false,false,false,false,false,false,false,false,false,false,false,false,false,false,false,false,false,false]
["2026-09-16","2026-09-16",false,false,false,false,false,false,false,false,false,false,false,false,false,false,false,false,false,false,false,false,false,false,false]
["2026-09-17","2026-09-17",false,false,false,false,false,false,false,false,false,false,false,false,false,false,false,false,false,false,false,false,false,false,false]
["2026-09-18","2026-09-18",false,false,false,false,false,false,false,false,false,false,false,false,false,false,false,false,false,false,false,false,false,false,false]
["2026-09-21","2026-09-21",false,false,false,false,false,false,false,false,false,false,false,false,false,false,false,false,false,false,false,false,false,false,false]
["2026-09-22","2026-09-22",false,false,false,false,false,false,false,false,false,false,false,false,false,false,false,false,false,false,false,false,false,false,false]
["2026-09-23","2026-09-23",false,false,false,false,false,false,false,false,false,false,false,false,false,false,false,false,false,false,false,false,false,false,false]
["2026-09-24","2026-09-24",false,false,false,false,false,false,false,false,false,false,false,false,false,false,false,false,false,false,false,false,false,false,false]
["2026-09-25","2026-09-25",false,false,false,false,false,false,false,false,false,false,false,false,false,false,false,false,false,false,false,false,false,false,false]
["2026-09-28","2026-09-28",false,false,false,false,false,false,false,false,false,false,false,false,false,false,false,false,false,false,false,false,false,false,false]
["2026-09-29","2026-09-29",false,false,false,false,false,false,false,false,false,false,false,false,false,false,false,false,false,false,false,false,false,false,false]
["2026-09-30","2026-09-30",false,false,false,false,false,false,false,false,false,false,false,false,false,false,false,false,false,false,false,false,false,false,false]
["2026-10-01",{"$f":"A196","v":"2026-10-01"},false,false,false,false,false,false,false,false,false,false,false,false,false,false,false,false,false,false,false,false,false,false,false]
["2026-10-02","2026-10-02",false,false,false,false,false,false,false,false,false,false,false,false,false,false,false,false,false,false,false,false,false,false,false]
["2026-10-05","2026-10-05",false,false,false,false,false,false,false,false,false,false,false,false,false,false,false,false,false,false,false,false,false,false,false]
["2026-10-06","2026-10-06",false,false,false,false,false,false,false,false,false,false,false,false,false,false,false,false,false,false,false,false,false,false,false]
[{"$f":"A195+7","v":"2026-10-07"},"2026-10-07",false,false,false,false,false,false,false,false,false,false,false,false,false,false,false,false,false,false,false,false,false,false,false]
["2026-10-08","2026-10-08",false,false,false,false,false,false,false,false,false,false,false,false,false,false,false,false,false,false,false,false,false,false,false]
["2026-10-09","2026-10-09",false,false,false,false,false,false,false,false,false,false,false,false,false,false,false,false,false,false,false,false,false,false,false]
["2026-10-12","2026-10-12",false,false,false,false,false,false,false,false,false,false,false,false,false,false,false,false,false,false,false,false,false,false,false]
["2026-10-13","2026-10-13",false,false,false,false,false,false,false,false,false,false,false,false,false,false,false,false,false,false,false,false,false,false,false]
["2026-10-14","2026-10-14",false,false,false,false,false,false,false,false,false,false,false,false,false,false,false,false,false,false,false,false,false,false,false]
["2026-10-15","2026-10-15",false,false,false,false,false,false,false,false,false,false,false,false,false,false,false,false,false,false,false,false,false,false,false]
["2026-10-16","2026-10-16",false,false,false,false,false,false,false,false,false,false,false,false,false,false,false,false,false,false,false,false,false,false,false]
["2026-10-19","2026-10-19",false,false,false,false,false,false,false,false,false,false,false,false,false,false,false,false,false,false,false,false,false,false,false]
["2026-10-20","2026-10-20",false,false,false,false,false,false,false,false,false,false,false,false,false,false,false,false,false,false,false,false,false,false,false]
["2026-10-21","2026-10-21",false,false,false,false,false,false,false,false,false,false,false,false,false,false,false,false,false,false,false,false,false,false,false]
["2026-10-22","2026-10-22",false,false,false,false,false,false,false,false,false,false,false,false,false,false,false,false,false,false,false,false,false,false,false]
["2026-10-23","2026-10-23",false,false,false,false,false,false,false,false,false,false,false,false,false,false,false,false,false,false,false,false,false,false,false]
["2026-10-26","2026-10-26",false,false,false,false,false,false,false,false,false,false,false,false,false,false,false,false,false,false,false,false,false,false,false]
["2026-10-27","2026-10-27",false,false,false,false,false,false,false,false,false,false,false,false,false,false,false,false,false,false,false,false,false,false,false]
["2026-10-28","2026-10-28",false,false,false,false,false,false,false,false,false,false,false,false,false,false,false,false,false,false,false,false,false,false,false]
["2026-10-29","2026-10-29",false,false,false,false,false,false,false,false,false,false,false,false,false,false,false,false,false,false,false,false,false,false,false]
["2026-10-30","2026-10-30",false,false,false,false,false,false,false,false,false,false,false,false,false,false,false,false,false,false,false,false,false,false,false]
["2026-11-02","2026-11-02",false,false,false,false,false,false,false,false,false,false,false,false,false,false,false,false,false,false,false,false,false,false,false]
["2026-11-03","2026-11-03",false,false,false,false,false,false,false,false,false,false,false,false,false,false,false,false,false,false,false,false,false,false,false]
["2026-11-04","2026-11-04",false,false,false,false,false,false,false,false,false,false,false,false,false,false,false,false,false,false,false,false,false,false,false]
["2026-11-05","2026-11-05",false,false,false,false,false,false,false,false,false,false,false,false,false,false,false,false,false,false,false,false,false,false,false]
["2026-11-06","2026-11-06",false,false,false,false,false,false,false,false,false,false,false,false,false,false,false,false,false,false,false,false,false,false,false]
["2026-11-09","2026-11-09",false,false,false,false,false,false,false,false,false,false,false,false,false,false,false,false,false,false,false,false,false,false,false]
["2026-11-10","2026-11-10",false,false,false,false,false,false,false,false,false,false,false,false,false,false,false,false,false,false,false,false,false,false,false]
["2026-11-11","2026-11-11",false,false,false,false,false,false,false,false,false,false,false,false,false,false,false,false,false,false,false,false,false,false,false]
["2026-11-12","2026-11-12",false,false,false,false,false,false,false,false,false,false,false,false,false,false,false,false,false,false,false,false,false,false,false]
["2026-11-13","2026-11-13",false,false,false,false,false,false,false,false,false,false,false,false,false,false,false,false,false,false,false,false,false,false,false]
["2026-11-16","2026-11-16",false,false,false,false,false,false,false,false,false,false,false,false,false,false,false,false,false,false,false,false,false,false,false]
["2026-11-17","2026-11-17",false,false,false,false,false,false,false,false,false,false,false,false,false,false,false,false,false,false,false,false,false,false,false]
["2026-11-18","2026-11-18",false,false,false,false,false,false,false,false,false,false,false,false,false,false,false,false,false,false,false,false,false,false,false]
["2026-11-19","2026-11-19",false,false,false,false,false,false,false,false,false,false,false,false,false,false,false,false,false,false,false,false,false,false,false]
["2026-11-20","2026-11-20",false,false,false,false,false,false,false,false,false,false,false,false,false,false,false,false,false,false,false,false,false,false,false]
["2026-11-23","2026-11-23",false,false,false,false,false,false,false,false,false,false,false,false,false,false,false,false,false,false,false,false,false,false,false]
["2026-11-24","2026-11-24",false,false,false,false,false,false,false,false,false,false,false,false,false,false,false,false,false,false,false,false,false,false,false]
["2026-11-25","2026-11-25",false,false,false,false,false,false,false,false,false,false,false,false,false,false,false,false,false,false,false,false,false,false,false]
["2026-11-26","2026-11-26",false,false,false,false,false,false,false,false,false,false,false,false,false,false,false,false,false,false,false,false,false,false,false]
["2026-11-27","2026-11-27",false,false,false,false,false,false,false,false,false,false,false,false,false,false,false,false,false,false,false,false,false,false,false]
["2026-11-30","2026-11-30",false,false,false,false,false,false,false,false,false,false,false,false,false,false,false,false,false,false,false,false,false,false,false]
["2026-12-01","2026-12-01",false,false,false,false,false,false,false,false,false,false,false,false,false,false,false,false,false,false,false,false,false,false,false]
["2026-12-02","2026-12-02",false,false,false,false,false,false,false,false,false,false,false,false,false,false,false,false,false,false,false,false,false,false,false]
["2026-12-03","2026-12-03",false,false,false,false,false,false,false,false,false,false,false,false,false,false,false,false,false,false,false,false,false,false,false]
["2026-12-04","2026-12-04",false,false,false,false,false,false,false,false,false,false,false,false,false,false,false,false,false,false,false,false,false,false,false]
["2026-12-07","2026-12-07",false,false,false,false,false,false,false,false,false,false,false,false,false,false,false,false,false,false,false,false,false,false,false]
["2026-12-08","2026-12-08",false,false,false,false,false,false,false,false,false,false,false,false,false,false,false,false,false,false,false,false,false,false,false]
["2026-12-09","2026-12-09",false,false,false,false,false,false,false,false,false,false,false,false,false,false,false,false,false,false,false,false,false,false,false]
["2026-12-10","2026-12-10",false,false,false,false,false,false,false,false,false,false,false,false,false,false,false,false,false,false,false,false,false,false,false]
["2026-12-11","2026-12-11",false,false,false,false,false,false,false,false,false,false,false,false,false,false,false,false,false,false,false,false,false,false,false]
["2026-12-14","2026-12-14",false,false,false,false,false,false,false,false,false,false,false,false,false,false,false,false,false,false,false,false,false,false,false]
["2026-12-15","2026-12-15",false,false,false,false,false,false,false,false,false,false,false,false,false,false,false,false,false,false,false,false,false,false,false]
["2026-12-16","2026-12-16",false,false,false,false,false,false,false,false,false,false,false,false,false,false,false,false,false,false,false,false,false,false,false]
["2026-12-17","2026-12-17",false,false,false,false,false,false,false,false,false,false,false,false,false,false,false,false,false,false,false,false,false,false,false]
["2026-12-18","2026-12-18",false,false,false,false,false,false,false,false,false,false,false,false,false,false,false,false,false,false,false,false,false,false,false]
["2026-12-21","2026-12-21",false,false,false,false,false,false,false,false,false,false,false,false,false,false,false,false,false,false,false,false,false,false,false]
["2026-12-22","2026-12-22",false,false,false,false,false,false,false,false,false,false,false,false,false,false,false,false,false,false,false,false,false,false,false]
["2026-12-23","2026-12-23",false,false,false,false,false,false,false,false,false,false,false,false,false,false,false,false,false,false,false,false,false,false,false]
["2026-12-24","2026-12-24",false,false,false,false,false,false,false,false,false,false,false,false,false,false,false,false,false,false,false,false,false,false,false]
["2026-12-25","2026-12-25",false,false,false,false,false,false,false,false,false,false,false,false,false,false,false,false,false,false,false,false,false,false,false]
["2026-12-28","2026-12-28",false,false,false,false,false,false,false,false,false,false,false,false,false,false,false,false,false,false,false,false,false,false,false]
["2026-12-29","2026-12-29",false,false,false,false,false,false,false,false,false,false,false,false,false,false,false,false,false,false,false,false,false,false,false]
["2026-12-30",{"$f":"A260","v":"2026-12-30"},false,false,false,false,false,false,false,false,false,false,false,false,false,false,false,false,false,false,false,false,false,false,false]
["2026-12-31","2026-12-31",false,false,false,false,false,false,false,false,false,false,false,false,false,false,false,false,false,false,false,false,false,false,false]
["2027-01-01","2027-01-01",false,false,false,false,false,false,false,false,false,false,false,false,false,false,false,false,false,false,false,false,false,false,false]

{"sheet":"Stap 3","index":3,"n_rows":26,"n_cols":7,"rows_kept":26,"cut":false,"hidden":false,"merged":[]}
[]
[null,null,"Werkdagen"]
[null,"Foto","Ma","Di","Wo","Do","Vr"]
["Kim",{"$error":"#VALUE!"},false,false,false,false,false]
["Stefan",{"$error":"#VALUE!"},false,false,false,false,false]
["Dineke",{"$error":"#VALUE!"},false,false,false,false,false]
["Wim",{"$error":"#VALUE!"},false,false,false,false,false]
["Jort",{"$error":"#VALUE!"},false,false,false,false,false]
[null,null,false,false,false,false,false]
[null,null,false,false,false,false,false]
[null,null,false,false,false,false,false]
[null,null,false,false,false,false,false]
[null,null,false,false,false,false,false]
[null,null,false,false,false,false,false]
[null,null,false,false,false,false,false]
[null,null,false,false,false,false,false]
[null,null,false,false,false,false,false]
[null,null,false,false,false,false,false]
[null,null,false,false,false,false,false]
[null,null,false,false,false,false,false]
[null,null,false,false,false,false,false]
[null,null,false,false,false,false,false]
[null,null,false,false,false,false,false]
[null,null,false,false,false,false,false]
[null,null,false,false,false,false,false]
[null,null,false,false,false,false,false]

{"sheet":"Stap 4","index":4,"n_rows":26,"n_cols":7,"rows_kept":26,"cut":false,"hidden":false,"merged":[]}
[]
[null,null,"Werkdagen"]
[null,"Foto","Ma","Di","Wo","Do","Vr"]
["Kim",{"$error":"#VALUE!"},false,false,false,false,false]
["Stefan",{"$error":"#VALUE!"},false,false,false,false,false]
["Dineke",{"$error":"#VALUE!"},false,false,false,false,false]
["Wim",{"$error":"#VALUE!"},false,false,false,false,false]
["Jort",{"$error":"#VALUE!"},false,false,false,false,false]
[null,null,false,false,false,false,false]
[null,null,false,false,false,false,false]
[null,null,false,false,false,false,false]
[null,null,false,false,false,false,false]
[null,null,false,false,false,false,false]
[null,null,false,false,false,false,false]
[null,null,false,false,false,false,false]
[null,null,false,false,false,false,false]
[null,null,false,false,false,false,false]
[null,null,false,false,false,false,false]
[null,null,false,false,false,false,false]
[null,null,false,false,false,false,false]
[null,null,false,false,false,false,false]
[null,null,false,false,false,false,false]
[null,null,false,false,false,false,false]
[null,null,false,false,false,false,false]
[null,null,false,false,false,false,false]
[null,null,false,false,false,false,false]

{"sheet":"Stap 5","index":5,"n_rows":26,"n_cols":7,"rows_kept":26,"cut":false,"hidden":false,"merged":[]}
[]
[null,null,"Werkdagen"]
[null,"Foto","Ma","Di","Wo","Do","Vr"]
["Kim",{"$error":"#VALUE!"},false,false,false,false,false]
["Stefan",{"$error":"#VALUE!"},false,false,false,false,false]
["Dineke",{"$error":"#VALUE!"},false,false,false,false,false]
["Wim",{"$error":"#VALUE!"},false,false,false,false,false]
["Jort",{"$error":"#VALUE!"},false,false,false,false,false]
[null,null,false,false,false,false,false]
[null,null,false,false,false,false,false]
[null,null,false,false,false,false,false]
[null,null,false,false,false,false,false]
[null,null,false,false,false,false,false]
[null,null,false,false,false,false,false]
[null,null,false,false,false,false,false]
[null,null,false,false,false,false,false]
[null,null,false,false,false,false,false]
[null,null,false,false,false,false,false]
[null,null,false,false,false,false,false]
[null,null,false,false,false,false,false]
[null,null,false,false,false,false,false]
[null,null,false,false,false,false,false]
[null,null,false,false,false,false,false]
[null,null,false,false,false,false,false]
[null,null,false,false,false,false,false]
[null,null,false,false,false,false,false]

{"sheet":"Instellingen","index":6,"n_rows":26,"n_cols":7,"rows_kept":26,"cut":false,"hidden":false,"merged":[]}
[]
[null,null,"Werkdagen"]
[null,"Foto","Ma","Di","Wo","Do","Vr"]
["Kim",{"$error":"#VALUE!"},false,false,false,false,false]
["Stefan",{"$error":"#VALUE!"},false,false,false,false,false]
["Dineke",{"$error":"#VALUE!"},false,false,false,false,false]
["Wim",{"$error":"#VALUE!"},false,false,false,false,false]
["Jort",{"$error":"#VALUE!"},false,false,false,false,false]
[null,null,false,false,false,false,false]
[null,null,false,false,false,false,false]
[null,null,false,false,false,false,false]
[null,null,false,false,false,false,false]
[null,null,false,false,false,false,false]
[null,null,false,false,false,false,false]
[null,null,false,false,false,false,false]
[null,null,false,false,false,false,false]
[null,null,false,false,false,false,false]
[null,null,false,false,false,false,false]
[null,null,false,false,false,false,false]
[null,null,false,false,false,false,false]
[null,null,false,false,false,false,false]
[null,null,false,false,false,false,false]
[null,null,false,false,false,false,false]
[null,null,false,false,false,false,false]
[null,null,false,false,false,false,false]
[null,null,false,false,false,false,false]

{"sheet":"Werkdagen","index":7,"n_rows":262,"n_cols":29,"rows_kept":262,"cut":false,"hidden":false,"merged":[]}
[null,null,"Medewerker"]
["Datum",null,{"$f":"TRANSPOSE(Instellingen!B4:B26)","v":{"$error":"#VALUE!"}},{"$error":"#VALUE!"},{"$error":"#VALUE!"},{"$error":"#VALUE!"},{"$error":"#VALUE!"},0,0,0,0,0,0,0,0,0,0,0,0,0,0,0,0,0,0]
["2026-01-05",{"$f":"A3","v":"2026-01-05"},false,false,false,false,false,false,false,false,false,false,false,false,false,false,false,false,false,false,false,false,false,false,false]
[{"$f":"A3+1","v":"2026-01-06"},{"$f":"A4","v":"2026-01-06"},false,false,false,false,false,false,false,false,false,false,false,false,false,false,false,false,false,false,false,false,false,false,false]
[{"$f":"A4+1","v":"2026-01-07"},"2026-01-07",false,false,false,false,false,false,false,false,false,false,false,false,false,false,false,false,false,false,false,false,false,false,false]
["2026-01-08","2026-01-08",false,false,false,false,false,false,false,false,false,false,false,false,false,false,false,false,false,false,false,false,false,false,false]
["2026-01-09","2026-01-09",false,false,false,false,false,false,false,false,false,false,false,false,false,false,false,false,false,false,false,false,false,false,false]
[{"$f":"A3+7","v":"2026-01-12"},"2026-01-12",false,false,false,false,false,false,false,false,false,false,false,false,false,false,false,false,false,false,false,false,false,false,false]
["2026-01-13","2026-01-13",false,false,false,false,false,false,false,false,false,false,false,false,false,false,false,false,false,false,false,false,false,false,false,null,null,null,"Bestand aanpassen,"]
["2026-01-14","2026-01-14",false,false,false,false,false,false,false,false,false,false,false,false,false,false,false,false,false,false,false,false,false,false,false,null,null,null,"een bestand op maat of"]
["2026-01-15","2026-01-15",false,false,false,false,false,false,false,false,false,false,false,false,false,false,false,false,false,false,false,false,false,false,false,null,null,null,"een cursus op locatie?"]
["2026-01-16","2026-01-16",false,false,false,false,false,false,false,false,false,false,false,false,false,false,false,false,false,false,false,false,false,false,false,null,null,null,"Neem contact op via:"]
["2026-01-19","2026-01-19",false,false,false,false,false,false,false,false,false,false,false,false,false,false,false,false,false,false,false,false,false,false,false]
["2026-01-20","2026-01-20",false,false,false,false,false,false,false,false,false,false,false,false,false,false,false,false,false,false,false,false,false,false,false,null,null,"*","info@terzake-excel.nl"]
["2026-01-21","2026-01-21",false,false,false,false,false,false,false,false,false,false,false,false,false,false,false,false,false,false,false,false,false,false,false,null,null,"(","0317 200 009"]
["2026-01-22","2026-01-22",false,false,false,false,false,false,false,false,false,false,false,false,false,false,false,false,false,false,false,false,false,false,false]
["2026-01-23","2026-01-23",false,false,false,false,false,false,false,false,false,false,false,false,false,false,false,false,false,false,false,false,false,false,false]
["2026-01-26","2026-01-26",false,false,false,false,false,false,false,false,false,false,false,false,false,false,false,false,false,false,false,false,false,false,false]
["2026-01-27","2026-01-27",false,false,false,false,false,false,false,false,false,false,false,false,false,false,false,false,false,false,false,false,false,false,false]
["2026-01-28","2026-01-28",false,false,false,false,false,false,false,false,false,false,false,false,false,false,false,false,false,false,false,false,false,false,false]
["2026-01-29","2026-01-29",false,false,false,false,false,false,false,false,false,false,false,false,false,false,false,false,false,false,false,false,false,false,false]
["2026-01-30","2026-01-30",false,false,false,false,false,false,false,false,false,false,false,false,false,false,false,false,false,false,false,false,false,false,false]
["2026-02-02","2026-02-02",false,false,false,false,false,false,false,false,false,false,false,false,false,false,false,false,false,false,false,false,false,false,false]
["2026-02-03","2026-02-03",false,false,false,false,false,false,false,false,false,false,false,false,false,false,false,false,false,false,false,false,false,false,false]
["2026-02-04","2026-02-04",false,false,false,false,false,false,false,false,false,false,false,false,false,false,false,false,false,false,false,false,false,false,false]
["2026-02-05","2026-02-05",false,false,false,false,false,false,false,false,false,false,false,false,false,false,false,false,false,false,false,false,false,false,false]
["2026-02-06","2026-02-06",false,false,false,false,false,false,false,false,false,false,false,false,false,false,false,false,false,false,false,false,false,false,false]
["2026-02-09","2026-02-09",false,false,false,false,false,false,false,false,false,false,false,false,false,false,false,false,false,false,false,false,false,false,false]
["2026-02-10","2026-02-10",false,false,false,false,false,false,false,false,false,false,false,false,false,false,false,false,false,false,false,false,false,false,false]
["2026-02-11","2026-02-11",false,false,false,false,false,false,false,false,false,false,false,false,false,false,false,false,false,false,false,false,false,false,false]
["2026-02-12","2026-02-12",false,false,false,false,false,false,false,false,false,false,false,false,false,false,false,false,false,false,false,false,false,false,false]
["2026-02-13","2026-02-13",false,false,false,false,false,false,false,false,false,false,false,false,false,false,false,false,false,false,false,false,false,false,false]
["2026-02-16","2026-02-16",false,false,false,false,false,false,false,false,false,false,false,false,false,false,false,false,false,false,false,false,false,false,false]
["2026-02-17","2026-02-17",false,false,false,false,false,false,false,false,false,false,false,false,false,false,false,false,false,false,false,false,false,false,false]
["2026-02-18","2026-02-18",false,false,false,false,false,false,false,false,false,false,false,false,false,false,false,false,false,false,false,false,false,false,false]
["2026-02-19","2026-02-19",false,false,false,false,false,false,false,false,false,false,false,false,false,false,false,false,false,false,false,false,false,false,false]
["2026-02-20","2026-02-20",false,false,false,false,false,false,false,false,false,false,false,false,false,false,false,false,false,false,false,false,false,false,false]
["2026-02-23","2026-02-23",false,false,false,false,false,false,false,false,false,false,false,false,false,false,false,false,false,false,false,false,false,false,false]
["2026-02-24","2026-02-24",false,false,false,false,false,false,false,false,false,false,false,false,false,false,false,false,false,false,false,false,false,false,false]
[{"$f":"A35+7","v":"2026-02-25"},"2026-02-25",false,false,false,false,false,false,false,false,false,false,false,false,false,false,false,false,false,false,false,false,false,false,false]
["2026-02-26","2026-02-26",false,false,false,false,false,false,false,false,false,false,false,false,false,false,false,false,false,false,false,false,false,false,false]
["2026-02-27","2026-02-27",false,false,false,false,false,false,false,false,false,false,false,false,false,false,false,false,false,false,false,false,false,false,false]
["2026-03-02","2026-03-02",false,false,false,false,false,false,false,false,false,false,false,false,false,false,false,false,false,false,false,false,false,false,false]
["2026-03-03","2026-03-03",false,false,false,false,false,false,false,false,false,false,false,false,false,false,false,false,false,false,false,false,false,false,false]
["2026-03-04","2026-03-04",false,false,false,false,false,false,false,false,false,false,false,false,false,false,false,false,false,false,false,false,false,false,false]
["2026-03-05","2026-03-05",false,false,false,false,false,false,false,false,false,false,false,false,false,false,false,false,false,false,false,false,false,false,false]
["2026-03-06","2026-03-06",false,false,false,false,false,false,false,false,false,false,false,false,false,false,false,false,false,false,false,false,false,false,false]
["2026-03-09","2026-03-09",false,false,false,false,false,false,false,false,false,false,false,false,false,false,false,false,false,false,false,false,false,false,false]
["2026-03-10","2026-03-10",false,false,false,false,false,false,false,false,false,false,false,false,false,false,false,false,false,false,false,false,false,false,false]
["2026-03-11","2026-03-11",false,false,false,false,false,false,false,false,false,false,false,false,false,false,false,false,false,false,false,false,false,false,false]
["2026-03-12","2026-03-12",false,false,false,false,false,false,false,false,false,false,false,false,false,false,false,false,false,false,false,false,false,false,false]
["2026-03-13","2026-03-13",false,false,false,false,false,false,false,false,false,false,false,false,false,false,false,false,false,false,false,false,false,false,false]
["2026-03-16","2026-03-16",false,false,false,false,false,false,false,false,false,false,false,false,false,false,false,false,false,false,false,false,false,false,false]
["2026-03-17","2026-03-17",false,false,false,false,false,false,false,false,false,false,false,false,false,false,false,false,false,false,false,false,false,false,false]
["2026-03-18","2026-03-18",false,false,false,false,false,false,false,false,false,false,false,false,false,false,false,false,false,false,false,false,false,false,false]
["2026-03-19","2026-03-19",false,false,false,false,false,false,false,false,false,false,false,false,false,false,false,false,false,false,false,false,false,false,false]
["2026-03-20","2026-03-20",false,false,false,false,false,false,false,false,false,false,false,false,false,false,false,false,false,false,false,false,false,false,false]
["2026-03-23","2026-03-23",false,false,false,false,false,false,false,false,false,false,false,false,false,false,false,false,false,false,false,false,false,false,false]
["2026-03-24","2026-03-24",false,false,false,false,false,false,false,false,false,false,false,false,false,false,false,false,false,false,false,false,false,false,false]
["2026-03-25","2026-03-25",false,false,false,false,false,false,false,false,false,false,false,false,false,false,false,false,false,false,false,false,false,false,false]
["2026-03-26","2026-03-26",false,false,false,false,false,false,false,false,false,false,false,false,false,false,false,false,false,false,false,false,false,false,false]
["2026-03-27","2026-03-27",false,false,false,false,false,false,false,false,false,false,false,false,false,false,false,false,false,false,false,false,false,false,false]
["2026-03-30","2026-03-30",false,false,false,false,false,false,false,false,false,false,false,false,false,false,false,false,false,false,false,false,false,false,false]
["2026-03-31","2026-03-31",false,false,false,false,false,false,false,false,false,false,false,false,false,false,false,false,false,false,false,false,false,false,false]
["2026-04-01","2026-04-01",false,false,false,false,false,false,false,false,false,false,false,false,false,false,false,false,false,false,false,false,false,false,false]
["2026-04-02","2026-04-02",false,false,false,false,false,false,false,false,false,false,false,false,false,false,false,false,false,false,false,false,false,false,false]
["2026-04-03","2026-04-03",false,false,false,false,false,false,false,false,false,false,false,false,false,false,false,false,false,false,false,false,false,false,false]
["2026-04-06",{"$f":"A68","v":"2026-04-06"},false,false,false,false,false,false,false,false,false,false,false,false,false,false,false,false,false,false,false,false,false,false,false]
["2026-04-07","2026-04-07",false,false,false,false,false,false,false,false,false,false,false,false,false,false,false,false,false,false,false,false,false,false,false]
["2026-04-08","2026-04-08",false,false,false,false,false,false,false,false,false,false,false,false,false,false,false,false,false,false,false,false,false,false,false]
["2026-04-09","2026-04-09",false,false,false,false,false,false,false,false,false,false,false,false,false,false,false,false,false,false,false,false,false,false,false]
[{"$f":"A67+7","v":"2026-04-10"},"2026-04-10",false,false,false,false,false,false,false,false,false,false,false,false,false,false,false,false,false,false,false,false,false,false,false]
[{"$f":"A68+7","v":"2026-04-13"},"2026-04-13",false,false,false,false,false,false,false,false,false,false,false,false,false,false,false,false,false,false,false,false,false,false,false]
["2026-04-14","2026-04-14",false,false,false,false,false,false,false,false,false,false,false,false,false,false,false,false,false,false,false,false,false,false,false]
["2026-04-15","2026-04-15",false,false,false,false,false,false,false,false,false,false,false,false,false,false,false,false,false,false,false,false,false,false,false]
["2026-04-16","2026-04-16",false,false,false,false,false,false,false,false,false,false,false,false,false,false,false,false,false,false,false,false,false,false,false]
["2026-04-17","2026-04-17",false,false,false,false,false,false,false,false,false,false,false,false,false,false,false,false,false,false,false,false,false,false,false]
["2026-04-20","2026-04-20",false,false,false,false,false,false,false,false,false,false,false,false,false,false,false,false,false,false,false,false,false,false,false]
["2026-04-21","2026-04-21",false,false,false,false,false,false,false,false,false,false,false,false,false,false,false,false,false,false,false,false,false,false,false]
["2026-04-22","2026-04-22",false,false,false,false,false,false,false,false,false,false,false,false,false,false,false,false,false,false,false,false,false,false,false]
["2026-04-23","2026-04-23",false,false,false,false,false,false,false,false,false,false,false,false,false,false,false,false,false,false,false,false,false,false,false]
["2026-04-24","2026-04-24",false,false,false,false,false,false,false,false,false,false,false,false,false,false,false,false,false,false,false,false,false,false,false]
["2026-04-27","2026-04-27",false,false,false,false,false,false,false,false,false,false,false,false,false,false,false,false,false,false,false,false,false,false,false]
["2026-04-28","2026-04-28",false,false,false,false,false,false,false,false,false,false,false,false,false,false,false,false,false,false,false,false,false,false,false]
["2026-04-29","2026-04-29",false,false,false,false,false,false,false,false,false,false,false,false,false,false,false,false,false,false,false,false,false,false,false]
["2026-04-30","2026-04-30",false,false,false,false,false,false,false,false,false,false,false,false,false,false,false,false,false,false,false,false,false,false,false]
["2026-05-01","2026-05-01",false,false,false,false,false,false,false,false,false,false,false,false,false,false,false,false,false,false,false,false,false,false,false]
["2026-05-04","2026-05-04",false,false,false,false,false,false,false,false,false,false,false,false,false,false,false,false,false,false,false,false,false,false,false]
["2026-05-05","2026-05-05",false,false,false,false,false,false,false,false,false,false,false,false,false,false,false,false,false,false,false,false,false,false,false]
["2026-05-06","2026-05-06",false,false,false,false,false,false,false,false,false,false,false,false,false,false,false,false,false,false,false,false,false,false,false]
["2026-05-07","2026-05-07",false,false,false,false,false,false,false,false,false,false,false,false,false,false,false,false,false,false,false,false,false,false,false]
["2026-05-08","2026-05-08",false,false,false,false,false,false,false,false,false,false,false,false,false,false,false,false,false,false,false,false,false,false,false]
["2026-05-11","2026-05-11",false,false,false,false,false,false,false,false,false,false,false,false,false,false,false,false,false,false,false,false,false,false,false]
["2026-05-12","2026-05-12",false,false,false,false,false,false,false,false,false,false,false,false,false,false,false,false,false,false,false,false,false,false,false]
["2026-05-13","2026-05-13",false,false,false,false,false,false,false,false,false,false,false,false,false,false,false,false,false,false,false,false,false,false,false]
["2026-05-14","2026-05-14",false,false,false,false,false,false,false,false,false,false,false,false,false,false,false,false,false,false,false,false,false,false,false]
["2026-05-15","2026-05-15",false,false,false,false,false,false,false,false,false,false,false,false,false,false,false,false,false,false,false,false,false,false,false]
["2026-05-18","2026-05-18",false,false,false,false,false,false,false,false,false,false,false,false,false,false,false,false,false,false,false,false,false,false,false]
["2026-05-19","2026-05-19",false,false,false,false,false,false,false,false,false,false,false,false,false,false,false,false,false,false,false,false,false,false,false]
["2026-05-20","2026-05-20",false,false,false,false,false,false,false,false,false,false,false,false,false,false,false,false,false,false,false,false,false,false,false]
["2026-05-21","2026-05-21",false,false,false,false,false,false,false,false,false,false,false,false,false,false,false,false,false,false,false,false,false,false,false]
["2026-05-22","2026-05-22",false,false,false,false,false,false,false,false,false,false,false,false,false,false,false,false,false,false,false,false,false,false,false]
["2026-05-25","2026-05-25",false,false,false,false,false,false,false,false,false,false,false,false,false,false,false,false,false,false,false,false,false,false,false]
["2026-05-26","2026-05-26",false,false,false,false,false,false,false,false,false,false,false,false,false,false,false,false,false,false,false,false,false,false,false]
["2026-05-27","2026-05-27",false,false,false,false,false,false,false,false,false,false,false,false,false,false,false,false,false,false,false,false,false,false,false]
["2026-05-28","2026-05-28",false,false,false,false,false,false,false,false,false,false,false,false,false,false,false,false,false,false,false,false,false,false,false]
["2026-05-29","2026-05-29",false,false,false,false,false,false,false,false,false,false,false,false,false,false,false,false,false,false,false,false,false,false,false]
["2026-06-01","2026-06-01",false,false,false,false,false,false,false,false,false,false,false,false,false,false,false,false,false,false,false,false,false,false,false]
["2026-06-02","2026-06-02",false,false,false,false,false,false,false,false,false,false,false,false,false,false,false,false,false,false,false,false,false,false,false]
["2026-06-03","2026-06-03",false,false,false,false,false,false,false,false,false,false,false,false,false,false,false,false,false,false,false,false,false,false,false]
["2026-06-04","2026-06-04",false,false,false,false,false,false,false,false,false,false,false,false,false,false,false,false,false,false,false,false,false,false,false]
["2026-06-05","2026-06-05",false,false,false,false,false,false,false,false,false,false,false,false,false,false,false,false,false,false,false,false,false,false,false]
["2026-06-08","2026-06-08",false,false,false,false,false,false,false,false,false,false,false,false,false,false,false,false,false,false,false,false,false,false,false]
["2026-06-09","2026-06-09",false,false,false,false,false,false,false,false,false,false,false,false,false,false,false,false,false,false,false,false,false,false,false]
["2026-06-10","2026-06-10",false,false,false,false,false,false,false,false,false,false,false,false,false,false,false,false,false,false,false,false,false,false,false]
["2026-06-11","2026-06-11",false,false,false,false,false,false,false,false,false,false,false,false,false,false,false,false,false,false,false,false,false,false,false]
["2026-06-12","2026-06-12",false,false,false,false,false,false,false,false,false,false,false,false,false,false,false,false,false,false,false,false,false,false,false]
["2026-06-15","2026-06-15",false,false,false,false,false,false,false,false,false,false,false,false,false,false,false,false,false,false,false,false,false,false,false]
["2026-06-16","2026-06-16",false,false,false,false,false,false,false,false,false,false,false,false,false,false,false,false,false,false,false,false,false,false,false]
["2026-06-17","2026-06-17",false,false,false,false,false,false,false,false,false,false,false,false,false,false,false,false,false,false,false,false,false,false,false]
["2026-06-18","2026-06-18",false,false,false,false,false,false,false,false,false,false,false,false,false,false,false,false,false,false,false,false,false,false,false]
["2026-06-19","2026-06-19",false,false,false,false,false,false,false,false,false,false,false,false,false,false,false,false,false,false,false,false,false,false,false]
["2026-06-22","2026-06-22",false,false,false,false,false,false,false,false,false,false,false,false,false,false,false,false,false,false,false,false,false,false,false]
["2026-06-23","2026-06-23",false,false,false,false,false,false,false,false,false,false,false,false,false,false,false,false,false,false,false,false,false,false,false]
["2026-06-24","2026-06-24",false,false,false,false,false,false,false,false,false,false,false,false,false,false,false,false,false,false,false,false,false,false,false]
["2026-06-25","2026-06-25",false,false,false,false,false,false,false,false,false,false,false,false,false,false,false,false,false,false,false,false,false,false,false]
["2026-06-26","2026-06-26",false,false,false,false,false,false,false,false,false,false,false,false,false,false,false,false,false,false,false,false,false,false,false]
["2026-06-29","2026-06-29",false,false,false,false,false,false,false,false,false,false,false,false,false,false,false,false,false,false,false,false,false,false,false]
["2026-06-30","2026-06-30",false,false,false,false,false,false,false,false,false,false,false,false,false,false,false,false,false,false,false,false,false,false,false]
["2026-07-01","2026-07-01",false,false,false,false,false,false,false,false,false,false,false,false,false,false,false,false,false,false,false,false,false,false,false]
["2026-07-02","2026-07-02",false,false,false,false,false,false,false,false,false,false,false,false,false,false,false,false,false,false,false,false,false,false,false]
["2026-07-03",{"$f":"A132","v":"2026-07-03"},false,false,false,false,false,false,false,false,false,false,false,false,false,false,false,false,false,false,false,false,false,false,false]
["2026-07-06","2026-07-06",false,false,false,false,false,false,false,false,false,false,false,false,false,false,false,false,false,false,false,false,false,false,false]
["2026-07-07","2026-07-07",false,false,false,false,false,false,false,false,false,false,false,false,false,false,false,false,false,false,false,false,false,false,false]
["2026-07-08","2026-07-08",false,false,false,false,false,false,false,false,false,false,false,false,false,false,false,false,false,false,false,false,false,false,false]
["2026-07-09","2026-07-09",false,false,false,false,false,false,false,false,false,false,false,false,false,false,false,false,false,false,false,false,false,false,false]
[{"$f":"A132+7","v":"2026-07-10"},"2026-07-10",false,false,false,false,false,false,false,false,false,false,false,false,false,false,false,false,false,false,false,false,false,false,false]
["2026-07-13","2026-07-13",false,false,false,false,false,false,false,false,false,false,false,false,false,false,false,false,false,false,false,false,false,false,false]
["2026-07-14","2026-07-14",false,false,false,false,false,false,false,false,false,false,false,false,false,false,false,false,false,false,false,false,false,false,false]
["2026-07-15","2026-07-15",false,false,false,false,false,false,false,false,false,false,false,false,false,false,false,false,false,false,false,false,false,false,false]
["2026-07-16","2026-07-16",false,false,false,false,false,false,false,false,false,false,false,false,false,false,false,false,false,false,false,false,false,false,false]
["2026-07-17","2026-07-17",false,false,false,false,false,false,false,false,false,false,false,false,false,false,false,false,false,false,false,false,false,false,false]
["2026-07-20","2026-07-20",false,false,false,false,false,false,false,false,false,false,false,false,false,false,false,false,false,false,false,false,false,false,false]
["2026-07-21","2026-07-21",false,false,false,false,false,false,false,false,false,false,false,false,false,false,false,false,false,false,false,false,false,false,false]
["2026-07-22","2026-07-22",false,false,false,false,false,false,false,false,false,false,false,false,false,false,false,false,false,false,false,false,false,false,false]
["2026-07-23","2026-07-23",false,false,false,false,false,false,false,false,false,false,false,false,false,false,false,false,false,false,false,false,false,false,false]
["2026-07-24","2026-07-24",false,false,false,false,false,false,false,false,false,false,false,false,false,false,false,false,false,false,false,false,false,false,false]
["2026-07-27","2026-07-27",false,false,false,false,false,false,false,false,false,false,false,false,false,false,false,false,false,false,false,false,false,false,false]
["2026-07-28","2026-07-28",false,false,false,false,false,false,false,false,false,false,false,false,false,false,false,false,false,false,false,false,false,false,false]
["2026-07-29","2026-07-29",false,false,false,false,false,false,false,false,false,false,false,false,false,false,false,false,false,false,false,false,false,false,false]
["2026-07-30","2026-07-30",false,false,false,false,false,false,false,false,false,false,false,false,false,false,false,false,false,false,false,false,false,false,false]
["2026-07-31","2026-07-31",false,false,false,false,false,false,false,false,false,false,false,false,false,false,false,false,false,false,false,false,false,false,false]
["2026-08-03","2026-08-03",false,false,false,false,false,false,false,false,false,false,false,false,false,false,false,false,false,false,false,false,false,false,false]
["2026-08-04","2026-08-04",false,false,false,false,false,false,false,false,false,false,false,false,false,false,false,false,false,false,false,false,false,false,false]
["2026-08-05","2026-08-05",false,false,false,false,false,false,false,false,false,false,false,false,false,false,false,false,false,false,false,false,false,false,false]
["2026-08-06","2026-08-06",false,false,false,false,false,false,false,false,false,false,false,false,false,false,false,false,false,false,false,false,false,false,false]
["2026-08-07","2026-08-07",false,false,false,false,false,false,false,false,false,false,false,false,false,false,false,false,false,false,false,false,false,false,false]
["2026-08-10","2026-08-10",false,false,false,false,false,false,false,false,false,false,false,false,false,false,false,false,false,false,false,false,false,false,false]
["2026-08-11","2026-08-11",false,false,false,false,false,false,false,false,false,false,false,false,false,false,false,false,false,false,false,false,false,false,false]
["2026-08-12","2026-08-12",false,false,false,false,false,false,false,false,false,false,false,false,false,false,false,false,false,false,false,false,false,false,false]
["2026-08-13","2026-08-13",false,false,false,false,false,false,false,false,false,false,false,false,false,false,false,false,false,false,false,false,false,false,false]
["2026-08-14","2026-08-14",false,false,false,false,false,false,false,false,false,false,false,false,false,false,false,false,false,false,false,false,false,false,false]
["2026-08-17","2026-08-17",false,false,false,false,false,false,false,false,false,false,false,false,false,false,false,false,false,false,false,false,false,false,false]
["2026-08-18","2026-08-18",false,false,false,false,false,false,false,false,false,false,false,false,false,false,false,false,false,false,false,false,false,false,false]
["2026-08-19","2026-08-19",false,false,false,false,false,false,false,false,false,false,false,false,false,false,false,false,false,false,false,false,false,false,false]
["2026-08-20","2026-08-20",false,false,false,false,false,false,false,false,false,false,false,false,false,false,false,false,false,false,false,false,false,false,false]
["2026-08-21","2026-08-21",false,false,false,false,false,false,false,false,false,false,false,false,false,false,false,false,false,false,false,false,false,false,false]
["2026-08-24","2026-08-24",false,false,false,false,false,false,false,false,false,false,false,false,false,false,false,false,false,false,false,false,false,false,false]
["2026-08-25","2026-08-25",false,false,false,false,false,false,false,false,false,false,false,false,false,false,false,false,false,false,false,false,false,false,false]
["2026-08-26","2026-08-26",false,false,false,false,false,false,false,false,false,false,false,false,false,false,false,false,false,false,false,false,false,false,false]
["2026-08-27","2026-08-27",false,false,false,false,false,false,false,false,false,false,false,false,false,false,false,false,false,false,false,false,false,false,false]
["2026-08-28","2026-08-28",false,false,false,false,false,false,false,false,false,false,false,false,false,false,false,false,false,false,false,false,false,false,false]
["2026-08-31","2026-08-31",false,false,false,false,false,false,false,false,false,false,false,false,false,false,false,false,false,false,false,false,false,false,false]
["2026-09-01","2026-09-01",false,false,false,false,false,false,false,false,false,false,false,false,false,false,false,false,false,false,false,false,false,false,false]
["2026-09-02","2026-09-02",false,false,false,false,false,false,false,false,false,false,false,false,false,false,false,false,false,false,false,false,false,false,false]
["2026-09-03","2026-09-03",false,false,false,false,false,false,false,false,false,false,false,false,false,false,false,false,false,false,false,false,false,false,false]
["2026-09-04","2026-09-04",false,false,false,false,false,false,false,false,false,false,false,false,false,false,false,false,false,false,false,false,false,false,false]
["2026-09-07","2026-09-07",false,false,false,false,false,false,false,false,false,false,false,false,false,false,false,false,false,false,false,false,false,false,false]
["2026-09-08","2026-09-08",false,false,false,false,false,false,false,false,false,false,false,false,false,false,false,false,false,false,false,false,false,false,false]
["2026-09-09","2026-09-09",false,false,false,false,false,false,false,false,false,false,false,false,false,false,false,false,false,false,false,false,false,false,false]
["2026-09-10","2026-09-10",false,false,false,false,false,false,false,false,false,false,false,false,false,false,false,false,false,false,false,false,false,false,false]
["2026-09-11","2026-09-11",false,false,false,false,false,false,false,false,false,false,false,false,false,false,false,false,false,false,false,false,false,false,false]
["2026-09-14","2026-09-14",false,false,false,false,false,false,false,false,false,false,false,false,false,false,false,false,false,false,false,false,false,false,false]
["2026-09-15","2026-09-15",false,false,false,false,false,false,false,false,false,false,false,false,false,false,false,false,false,false,false,false,false,false,false]
["2026-09-16","2026-09-16",false,false,false,false,false,false,false,false,false,false,false,false,false,false,false,false,false,false,false,false,false,false,false]
["2026-09-17","2026-09-17",false,false,false,false,false,false,false,false,false,false,false,false,false,false,false,false,false,false,false,false,false,false,false]
["2026-09-18","2026-09-18",false,false,false,false,false,false,false,false,false,false,false,false,false,false,false,false,false,false,false,false,false,false,false]
["2026-09-21","2026-09-21",false,false,false,false,false,false,false,false,false,false,false,false,false,false,false,false,false,false,false,false,false,false,false]
["2026-09-22","2026-09-22",false,false,false,false,false,false,false,false,false,false,false,false,false,false,false,false,false,false,false,false,false,false,false]
["2026-09-23","2026-09-23",false,false,false,false,false,false,false,false,false,false,false,false,false,false,false,false,false,false,false,false,false,false,false]
["2026-09-24","2026-09-24",false,false,false,false,false,false,false,false,false,false,false,false,false,false,false,false,false,false,false,false,false,false,false]
["2026-09-25","2026-09-25",false,false,false,false,false,false,false,false,false,false,false,false,false,false,false,false,false,false,false,false,false,false,false]
["2026-09-28","2026-09-28",false,false,false,false,false,false,false,false,false,false,false,false,false,false,false,false,false,false,false,false,false,false,false]
["2026-09-29","2026-09-29",false,false,false,false,false,false,false,false,false,false,false,false,false,false,false,false,false,false,false,false,false,false,false]
["2026-09-30","2026-09-30",false,false,false,false,false,false,false,false,false,false,false,false,false,false,false,false,false,false,false,false,false,false,false]
["2026-10-01",{"$f":"A196","v":"2026-10-01"},false,false,false,false,false,false,false,false,false,false,false,false,false,false,false,false,false,false,false,false,false,false,false]
["2026-10-02","2026-10-02",false,false,false,false,false,false,false,false,false,false,false,false,false,false,false,false,false,false,false,false,false,false,false]
["2026-10-05","2026-10-05",false,false,false,false,false,false,false,false,false,false,false,false,false,false,false,false,false,false,false,false,false,false,false]
["2026-10-06","2026-10-06",false,false,false,false,false,false,false,false,false,false,false,false,false,false,false,false,false,false,false,false,false,false,false]
["2026-10-07","2026-10-07",false,false,false,false,false,false,false,false,false,false,false,false,false,false,false,false,false,false,false,false,false,false,false]
[{"$f":"A196+7","v":"2026-10-08"},"2026-10-08",false,false,false,false,false,false,false,false,false,false,false,false,false,false,false,false,false,false,false,false,false,false,false]
["2026-10-09","2026-10-09",false,false,false,false,false,false,false,false,false,false,false,false,false,false,false,false,false,false,false,false,false,false,false]
["2026-10-12","2026-10-12",false,false,false,false,false,false,false,false,false,false,false,false,false,false,false,false,false,false,false,false,false,false,false]
["2026-10-13","2026-10-13",false,false,false,false,false,false,false,false,false,false,false,false,false,false,false,false,false,false,false,false,false,false,false]
["2026-10-14","2026-10-14",false,false,false,false,false,false,false,false,false,false,false,false,false,false,false,false,false,false,false,false,false,false,false]
["2026-10-15","2026-10-15",false,false,false,false,false,false,false,false,false,false,false,false,false,false,false,false,false,false,false,false,false,false,false]
["2026-10-16","2026-10-16",false,false,false,false,false,false,false,false,false,false,false,false,false,false,false,false,false,false,false,false,false,false,false]
["2026-10-19","2026-10-19",false,false,false,false,false,false,false,false,false,false,false,false,false,false,false,false,false,false,false,false,false,false,false]
["2026-10-20","2026-10-20",false,false,false,false,false,false,false,false,false,false,false,false,false,false,false,false,false,false,false,false,false,false,false]
["2026-10-21","2026-10-21",false,false,false,false,false,false,false,false,false,false,false,false,false,false,false,false,false,false,false,false,false,false,false]
["2026-10-22","2026-10-22",false,false,false,false,false,false,false,false,false,false,false,false,false,false,false,false,false,false,false,false,false,false,false]
["2026-10-23","2026-10-23",false,false,false,false,false,false,false,false,false,false,false,false,false,false,false,false,false,false,false,false,false,false,false]
["2026-10-26","2026-10-26",false,false,false,false,false,false,false,false,false,false,false,false,false,false,false,false,false,false,false,false,false,false,false]
["2026-10-27","2026-10-27",false,false,false,false,false,false,false,false,false,false,false,false,false,false,false,false,false,false,false,false,false,false,false]
["2026-10-28","2026-10-28",false,false,false,false,false,false,false,false,false,false,false,false,false,false,false,false,false,false,false,false,false,false,false]
["2026-10-29","2026-10-29",false,false,false,false,false,false,false,false,false,false,false,false,false,false,false,false,false,false,false,false,false,false,false]
["2026-10-30","2026-10-30",false,false,false,false,false,false,false,false,false,false,false,false,false,false,false,false,false,false,false,false,false,false,false]
["2026-11-02","2026-11-02",false,false,false,false,false,false,false,false,false,false,false,false,false,false,false,false,false,false,false,false,false,false,false]
["2026-11-03","2026-11-03",false,false,false,false,false,false,false,false,false,false,false,false,false,false,false,false,false,false,false,false,false,false,false]
["2026-11-04","2026-11-04",false,false,false,false,false,false,false,false,false,false,false,false,false,false,false,false,false,false,false,false,false,false,false]
["2026-11-05","2026-11-05",false,false,false,false,false,false,false,false,false,false,false,false,false,false,false,false,false,false,false,false,false,false,false]
["2026-11-06","2026-11-06",false,false,false,false,false,false,false,false,false,false,false,false,false,false,false,false,false,false,false,false,false,false,false]
["2026-11-09","2026-11-09",false,false,false,false,false,false,false,false,false,false,false,false,false,false,false,false,false,false,false,false,false,false,false]
["2026-11-10","2026-11-10",false,false,false,false,false,false,false,false,false,false,false,false,false,false,false,false,false,false,false,false,false,false,false]
["2026-11-11","2026-11-11",false,false,false,false,false,false,false,false,false,false,false,false,false,false,false,false,false,false,false,false,false,false,false]
["2026-11-12","2026-11-12",false,false,false,false,false,false,false,false,false,false,false,false,false,false,false,false,false,false,false,false,false,false,false]
["2026-11-13","2026-11-13",false,false,false,false,false,false,false,false,false,false,false,false,false,false,false,false,false,false,false,false,false,false,false]
["2026-11-16","2026-11-16",false,false,false,false,false,false,false,false,false,false,false,false,false,false,false,false,false,false,false,false,false,false,false]
["2026-11-17","2026-11-17",false,false,false,false,false,false,false,false,false,false,false,false,false,false,false,false,false,false,false,false,false,false,false]
["2026-11-18","2026-11-18",false,false,false,false,false,false,false,false,false,false,false,false,false,false,false,false,false,false,false,false,false,false,false]
["2026-11-19","2026-11-19",false,false,false,false,false,false,false,false,false,false,false,false,false,false,false,false,false,false,false,false,false,false,false]
["2026-11-20","2026-11-20",false,false,false,false,false,false,false,false,false,false,false,false,false,false,false,false,false,false,false,false,false,false,false]
["2026-11-23","2026-11-23",false,false,false,false,false,false,false,false,false,false,false,false,false,false,false,false,false,false,false,false,false,false,false]
["2026-11-24","2026-11-24",false,false,false,false,false,false,false,false,false,false,false,false,false,false,false,false,false,false,false,false,false,false,false]
["2026-11-25","2026-11-25",false,false,false,false,false,false,false,false,false,false,false,false,false,false,false,false,false,false,false,false,false,false,false]
["2026-11-26","2026-11-26",false,false,false,false,false,false,false,false,false,false,false,false,false,false,false,false,false,false,false,false,false,false,false]
["2026-11-27","2026-11-27",false,false,false,false,false,false,false,false,false,false,false,false,false,false,false,false,false,false,false,false,false,false,false]
["2026-11-30",{"$f":"A238","v":"2026-11-30"},false,false,false,false,false,false,false,false,false,false,false,false,false,false,false,false,false,false,false,false,false,false,false]
["2026-12-01","2026-12-01",false,false,false,false,false,false,false,false,false,false,false,false,false,false,false,false,false,false,false,false,false,false,false]
["2026-12-02","2026-12-02",false,false,false,false,false,false,false,false,false,false,false,false,false,false,false,false,false,false,false,false,false,false,false]
["2026-12-03","2026-12-03",false,false,false,false,false,false,false,false,false,false,false,false,false,false,false,false,false,false,false,false,false,false,false]
["2026-12-04","2026-12-04",false,false,false,false,false,false,false,false,false,false,false,false,false,false,false,false,false,false,false,false,false,false,false]
["2026-12-07","2026-12-07",false,false,false,false,false,false,false,false,false,false,false,false,false,false,false,false,false,false,false,false,false,false,false]
["2026-12-08","2026-12-08",false,false,false,false,false,false,false,false,false,false,false,false,false,false,false,false,false,false,false,false,false,false,false]
["2026-12-09","2026-12-09",false,false,false,false,false,false,false,false,false,false,false,false,false,false,false,false,false,false,false,false,false,false,false]
["2026-12-10","2026-12-10",false,false,false,false,false,false,false,false,false,false,false,false,false,false,false,false,false,false,false,false,false,false,false]
["2026-12-11","2026-12-11",false,false,false,false,false,false,false,false,false,false,false,false,false,false,false,false,false,false,false,false,false,false,false]
["2026-12-14","2026-12-14",false,false,false,false,false,false,false,false,false,false,false,false,false,false,false,false,false,false,false,false,false,false,false]
["2026-12-15","2026-12-15",false,false,false,false,false,false,false,false,false,false,false,false,false,false,false,false,false,false,false,false,false,false,false]
["2026-12-16","2026-12-16",false,false,false,false,false,false,false,false,false,false,false,false,false,false,false,false,false,false,false,false,false,false,false]
["2026-12-17","2026-12-17",false,false,false,false,false,false,false,false,false,false,false,false,false,false,false,false,false,false,false,false,false,false,false]
["2026-12-18","2026-12-18",false,false,false,false,false,false,false,false,false,false,false,false,false,false,false,false,false,false,false,false,false,false,false]
["2026-12-21","2026-12-21",false,false,false,false,false,false,false,false,false,false,false,false,false,false,false,false,false,false,false,false,false,false,false]
["2026-12-22","2026-12-22",false,false,false,false,false,false,false,false,false,false,false,false,false,false,false,false,false,false,false,false,false,false,false]
["2026-12-23","2026-12-23",false,false,false,false,false,false,false,false,false,false,false,false,false,false,false,false,false,false,false,false,false,false,false]
["2026-12-24","2026-12-24",false,false,false,false,false,false,false,false,false,false,false,false,false,false,false,false,false,false,false,false,false,false,false]
["2026-12-25","2026-12-25",false,false,false,false,false,false,false,false,false,false,false,false,false,false,false,false,false,false,false,false,false,false,false]
["2026-12-28","2026-12-28",false,false,false,false,false,false,false,false,false,false,false,false,false,false,false,false,false,false,false,false,false,false,false]
["2026-12-29","2026-12-29",false,false,false,false,false,false,false,false,false,false,false,false,false,false,false,false,false,false,false,false,false,false,false]
["2026-12-30","2026-12-30",false,false,false,false,false,false,false,false,false,false,false,false,false,false,false,false,false,false,false,false,false,false,false]
["2026-12-31","2026-12-31",false,false,false,false,false,false,false,false,false,false,false,false,false,false,false,false,false,false,false,false,false,false,false]
["2027-01-01","2027-01-01",false,false,false,false,false,false,false,false,false,false,false,false,false,false,false,false,false,false,false,false,false,false,false]